fUST/lending_fUST_20250824
["ID","MTS","AMOUNT","RATE_DAILY","PERIOD"]
[381078224,1756007441949,-151.0,0.000294,7]
[381078225,1756007441959,-151.0,0.000294,7]
[381078226,1756007441968,-298.994804,0.000294,7]
[381078227,1756007441977,-151.0,0.000294,7]
[381078228,1756007441986,-151.0,0.000294,7]
[381078229,1756007441995,-151.0,0.000294,7]
[381078230,1756007442005,-180.895004,0.000294,7]
[381078231,1756007442014,-180.895004,0.000294,7]
[381078232,1756007442023,-180.895004,0.000294,7]
[381078233,1756007442033,-151.0,0.000294,7]
[381078234,1756007442043,-180.895004,0.000294,7]
[381078235,1756007442052,-151.0,0.000294,7]
[381078236,1756007442062,-151.0,0.000294,7]
[381078237,1756007442071,-151.0,0.000294,7]
[381078238,1756007442080,-151.0,0.000294,7]
[381078239,1756007442090,-151.0,0.000294,7]
[381078240,1756007442099,-151.0,0.000294,7]
[381078241,1756007442109,-151.0,0.000294,7]
[381078242,1756007442119,-185.575436,0.000294,7]
[381078243,1756007442128,-228.729421,0.000294,7]
[381078244,1756007442137,-155.51094,0.000294,7]
[381078245,1756007442147,-155.51094,0.000294,7]
[381078246,1756007442156,-254.512641,0.000294,7]
[381078247,1756007442166,-155.51094,0.000294,7]
[381078248,1756007442175,-254.512641,0.000294,7]
[381078249,1756007442184,-155.51094,0.000294,7]
[381078250,1756007442194,-254.512641,0.000294,7]
[381078251,1756007442204,-254.512641,0.000294,7]
[381078252,1756007442214,-504.77465991,0.00029416,5]
[381078253,1756007442224,-7693.13858262,0.00029424,2]
[381078254,1756007442234,-1971.56249131,0.00029424,2]
[381078255,1756007442243,-1763.0,0.00029434,7]
[381078256,1756007442253,-1763.0,0.00029434,7]
[381078257,1756007442263,-1763.0,0.00029434,7]
[381078258,1756007442272,-1763.0,0.00029434,7]
[381078259,1756007442281,-1763.0,0.00029434,7]
[381078260,1756007442291,-1763.0,0.00029434,7]
[381078261,1756007442300,-1763.0,0.00029434,7]
[381078262,1756007442309,-1763.0,0.00029434,7]
[381078263,1756007442323,-1763.0,0.00029434,7]
[381078264,1756007442332,-176.75154657,0.00029434,7]
[381078265,1756007442341,-1763.0,0.00029434,7]
[381078266,1756007442351,-1763.0,0.00029434,7]
[381078267,1756007442363,-1760.0,0.00029434,7]
[381078268,1756007442372,-156.79709886,0.00029434,7]
[381078269,1756007442383,-161.0,0.00029434,7]
[381078270,1756007442394,-275.0,0.00029437,7]
[381078271,1756007442404,-161.47150705,0.00029443,7]
[381078272,1756007442414,-161.0,0.00029443,7]
[381078273,1756007442423,-168.62637664,0.00029443,7]
[381078274,1756007442433,-500.0,0.00029473,5]
[381078275,1756007442444,-162.0534906,0.00029473,5]
[381078276,1756007442454,-500.0,0.00029473,5]
[381078277,1756007442463,-500.0,0.00029473,5]
[381078278,1756007442475,-500.66356889,0.00029473,5]
[381078279,1756007442491,-451.0,0.0002949,30]
[381078280,1756007442500,-150.0,0.000295,2]
[381078281,1756007442510,-331.84,0.000295,7]
[381078282,1756007442519,-277.0,0.00029501,2]
[381078283,1756007442529,-5000.0,0.00029505,4]
[381078284,1756007442539,-175.0,0.00029518,2]
[381078285,1756007442548,-504.65739987,0.00029542,11]
[381078286,1756007442558,-501.72936358,0.00029547,11]
[381078287,1756007442568,-1000.0,0.0002957,5]
[381078288,1756007442586,-151.0,0.00029579,7]
[381078289,1756007442596,-500.0,0.00029579,7]
[381078290,1756007442605,-500.0,0.00029579,7]
[381078291,1756007442615,-500.0,0.00029579,7]
[381078292,1756007442624,-151.0,0.00029579,7]
[381078293,1756007442634,-151.0,0.00029579,7]
[381078294,1756007442643,-151.0,0.00029579,7]
[381078295,1756007442653,-151.0,0.00029579,7]
[381078296,1756007442662,-151.0,0.00029579,7]
[381078297,1756007442672,-151.0,0.00029579,7]
[381078298,1756007442681,-500.0,0.00029579,7]
[381078299,1756007442691,-198.0,0.00029579,7]
[381078300,1756007442700,-151.0,0.00029579,7]
[381078301,1756007442709,-210.90349589,0.00029579,7]
[381078302,1756007442718,-198.0,0.00029579,2]
[381078303,1756007442727,-593.58033851,0.00029579,7]
[381078304,1756007442737,-500.0,0.00029579,7]
[381078305,1756007442746,-168.0,0.00029647,2]
[381078306,1756007442755,-168.0,0.00029651,2]
[381078307,1756007442766,-151.0,0.00029674,7]
[381078309,1756007442776,-151.0,0.00029674,7]
[381078310,1756007442786,-500.0,0.00029674,7]
[381078311,1756007442795,-151.0,0.00029674,7]
[381078312,1756007442804,-250.61433319,0.00029674,7]
[381078313,1756007442814,-500.0,0.00029674,7]
[381078314,1756007442823,-500.0,0.00029674,7]
[381078315,1756007442832,-151.0,0.00029674,7]
[381078316,1756007442842,-173.0,0.00029688,2]
[381078317,1756007442852,-275.0,0.00029726,2]
[381078318,1756007442862,-1500.0,0.00029747,5]
[381078319,1756007442872,-168.0,0.00029757,2]
[381078320,1756007442882,-275.0,0.00029776,2]
[381078321,1756007442891,-151.0,0.00029853,7]
[381078322,1756007442902,-302.81399783,0.00029853,7]
[381078323,1756007442911,-302.0,0.00029853,7]
[381078324,1756007442920,-500.0,0.00029853,7]
[381078325,1756007442929,-151.0,0.00029853,7]
[381078326,1756007442938,-151.0,0.00029853,7]
[381078327,1756007442948,-151.0,0.00029853,7]
[381078328,1756007442957,-151.0,0.00029853,7]
[381078329,1756007442967,-151.0,0.00029853,7]
[381078330,1756007442976,-151.0,0.00029853,7]
[381078331,1756007442986,-500.0,0.00029853,7]
[381078332,1756007442996,-151.0,0.00029853,7]
[381078333,1756007443006,-500.0,0.00029853,7]
[381078334,1756007443015,-275.0,0.00029864,7]
[381078335,1756007443025,-168.0,0.00029876,2]
[381078336,1756007443035,-176.11663669,0.00029921,5]
[381078337,1756007443044,-706.72367357,0.00029921,5]
[381078338,1756007443054,-265.7819686,0.00029948,7]
[381078339,1756007443064,-213.45675265,0.00029948,7]
[381078340,1756007443074,-500.0,0.00029948,7]
[381078341,1756007443083,-151.0,0.00029948,7]
[381078342,1756007443092,-598.72542831,0.00029948,7]
[381078343,1756007443101,-500.0,0.00029948,7]
[381078344,1756007443112,-198.86680626,0.00029948,7]
[381078345,1756007443121,-320.87374149,0.00029957,5]
[381078346,1756007443131,-168.0,0.00029965,2]
[381078347,1756007443141,-173.0,0.0002997,2]
[381078348,1756007443150,-1000.61193483,0.00029973,5]
[381078349,1756007443160,-2300.0,0.0003,120]
[381078350,1756007443169,-200.0,0.0003,120]
[381078351,1756007443180,-1000.0,0.00030021,5]
[381078352,1756007443189,-1000.0,0.00030021,5]
[381078353,1756007443209,-501.91786643,0.00030021,5]
[381078354,1756007443222,-7693.13858262,0.00030117,2]
[381078355,1756007443232,-1971.56249131,0.00030117,2]
[381078356,1756007443242,-1500.0,0.00030118,5]
[381078357,1756007443252,-198.99807432,0.00030127,7]
[381078358,1756007443262,-549.56492559,0.00030127,7]
[381078359,1756007443273,-151.0,0.00030127,7]
[381078360,1756007443285,-151.0,0.00030127,7]
[381078361,1756007443295,-151.58718127,0.00030127,7]
[381078362,1756007443306,-151.0,0.00030127,7]
[381078363,1756007443318,-151.0,0.00030127,7]
[381078364,1756007443328,-500.0,0.00030127,7]
[381078365,1756007443338,-587.0,0.00030198,2]
[381078366,1756007443348,-275.0,0.00030206,2]
[381078367,1756007443359,-582.18063516,0.00030222,7]
[381078368,1756007443369,-151.0,0.00030222,7]
[381078369,1756007443379,-500.0,0.00030222,7]
[381078370,1756007443391,-168.0,0.00030224,7]
[381078371,1756007443401,-429.36628963,0.00030259,13]
[381078372,1756007443411,-2000.0,0.00030295,5]
[381078373,1756007443421,-500.52290068,0.00030335,5]
[381078374,1756007443430,-151.0,0.00030401,7]
[381078375,1756007443441,-151.0,0.00030401,7]
[381078376,1756007443450,-151.0,0.00030401,7]
[381078377,1756007443461,-500.0,0.00030427,2]
[381078378,1756007443470,-500.0,0.00030427,5]
[381078379,1756007443480,-500.0,0.00030427,5]
[381078380,1756007443490,-168.0,0.00030459,2]
[381078381,1756007443500,-298.791262,0.00030496,7]
[381078382,1756007443510,-275.0,0.0003056,2]
[381078383,1756007443520,-1504.61431129,0.00030568,5]
[381078384,1756007443530,-278.0,0.00030607,7]
[381078385,1756007443540,-647.66914228,0.00030631,4]
[381078387,1756007443550,-2000.0,0.00030666,5]
[381078389,1756007443560,-167.0,0.00030675,7]
[381078390,1756007443570,-208.64253542,0.00030675,7]
[381078391,1756007443579,-278.0,0.00030771,2]
[381078393,1756007443589,-221.27,0.000308,7]
[381078395,1756007443599,-1035.98602722,0.00030843,5]
[381078397,1756007443608,-576.39852768,0.00030975,2]
[381078399,1756007443618,-505.41813531,0.00030975,5]
[381078401,1756007443627,-224.61322912,0.00030975,5]
[381078402,1756007443637,-156.0,0.00031,120]
[381078403,1756007443647,-2500.0,0.00031214,5]
[381078404,1756007443657,-16006.63,0.000316,2]
[381078405,1756007443667,-2000.0,0.00031762,5]
[381078406,1756007443677,-429.36628963,0.00031986,17]
[381078407,1756007443687,-6666.74960126,0.00032089,2]
[381078408,1756007443697,-1807.54900568,0.00032089,2]
[381078409,1756007443707,-823.0,0.00032689,2]
[381078410,1756007443717,-237.64810576,0.00032694,7]
[381078411,1756007443727,-7693.13858262,0.00032734,2]
[381078412,1756007443736,-1971.56249131,0.00032734,2]
[381078413,1756007443747,-327.73702,0.00032744,7]
[381078414,1756007443758,-327.73702,0.00032744,7]
[381078415,1756007443768,-327.73702,0.00032744,7]
[381078416,1756007443778,-327.73702,0.00032744,7]
[381078418,1756007443787,-151.0,0.00032744,7]
[381078420,1756007443797,-151.0,0.00032744,7]
[381078422,1756007443806,-151.0,0.00032744,7]
[381078424,1756007443816,-151.0,0.00032744,7]
[381078425,1756007443826,-151.0,0.00032744,7]
[381078426,1756007443835,-151.0,0.00032744,7]
[381078427,1756007443845,-151.0,0.00032744,7]
[381078428,1756007443855,-386.646439,0.00032744,7]
[381078429,1756007443865,-386.646439,0.00032744,7]
[381078430,1756007443875,-386.646439,0.00032744,7]
[381078431,1756007443884,-386.646439,0.00032744,7]
[381078432,1756007443894,-318.477194,0.00032744,7]
[381078433,1756007443903,-331.435338,0.00032744,7]
[381078434,1756007443998,-318.477194,0.00032744,7]
[381078435,1756007444008,-318.477194,0.00032744,7]
[381078436,1756007444018,-318.477194,0.00032744,7]
[381078437,1756007444027,-1272.781778,0.00032744,7]
[381078438,1756007444037,-1272.781778,0.00032744,7]
[381078439,1756007444046,-1272.781778,0.00032744,7]
[381078440,1756007444056,-1272.781778,0.00032744,7]
[381078441,1756007444065,-501.00323893,0.00032773,5]
[381078442,1756007444075,-500.0,0.00032773,5]
[381078443,1756007444084,-500.0,0.00032773,5]
[381078444,1756007444096,-502.13867085,0.00032773,2]
[381078445,1756007444106,-500.0,0.00032773,5]
[381078446,1756007444117,-500.0,0.00032773,5]
[381078447,1756007444126,-500.0,0.00032773,5]
[381078448,1756007444135,-501.47097522,0.00032773,5]
[381078449,1756007444144,-500.0,0.00032773,5]
[381078450,1756007444154,-502.06378731,0.00032773,5]
[381078451,1756007444164,-517.69728802,0.00032773,5]
[381078452,1756007444173,-500.0,0.00032773,5]
[381078453,1756007444182,-503.53147026,0.00032773,5]
[381078454,1756007444192,-501.71104737,0.00032773,5]
[381078455,1756007444201,-500.0,0.00032773,5]
[381078456,1756007444210,-500.0,0.00032773,5]
[381078457,1756007444219,-500.0,0.00032773,5]
[381078458,1756007444228,-508.93312684,0.00032773,5]
[381078459,1756007444238,-151.0,0.00032876,7]
[381078460,1756007444247,-275.040463,0.00032876,7]
[381078461,1756007444256,-151.0,0.00032876,7]
[381078462,1756007444266,-151.0,0.00032876,7]
[381078463,1756007444275,-151.0,0.00032876,7]
[381078464,1756007444283,-151.0,0.00032876,7]
[381078465,1756007444293,-151.0,0.00032876,7]
[381078466,1756007444302,-151.0,0.00032876,7]
[381078467,1756007444311,-151.0,0.00032876,7]
[381078468,1756007444324,-151.0,0.00032876,7]
[381078469,1756007444333,-151.0,0.00032876,7]
[381078470,1756007444342,-1194.34,0.00032876,120]
[381078471,1756007444351,-156.44,0.00033074,2]
[381078472,1756007444361,-151.0,0.00033122,14]
[381078473,1756007444371,-152.237906,0.00033122,14]
[381078474,1756007444380,-151.0,0.00033122,14]
[381078475,1756007444390,-151.0,0.00033122,14]
[381078476,1756007444400,-280.872841,0.00033122,14]
[381078477,1756007444409,-151.0,0.00033122,14]
[381078478,1756007444419,-280.872841,0.00033122,14]
[381078479,1756007444428,-280.872841,0.00033122,14]
[381078480,1756007444437,-151.0,0.00033122,14]
[381078481,1756007444446,-151.0,0.00033122,14]
[381078482,1756007444456,-280.872841,0.00033122,14]
[381078483,1756007444465,-462.98077,0.00033122,14]
[381078484,1756007444475,-462.98077,0.00033122,14]
[381078485,1756007444484,-462.98077,0.00033122,14]
[381078486,1756007444493,-462.98077,0.00033122,14]
[381078487,1756007444503,-151.0,0.00033122,14]
[381078488,1756007444512,-151.0,0.00033122,14]
[381078489,1756007444521,-151.0,0.00033122,14]
[381078490,1756007444530,-151.0,0.00033122,14]
[381078491,1756007444539,-151.0,0.00033122,14]
[381078492,1756007444548,-151.0,0.00033122,14]
[381078493,1756007444557,-151.0,0.00033122,14]
[381078494,1756007444567,-151.0,0.00033122,14]
[381078495,1756007444576,-151.0,0.00033122,14]
[381078496,1756007444585,-151.0,0.00033122,14]
[381078497,1756007444595,-151.0,0.00033122,14]
[381078498,1756007444609,-174.619407,0.00033122,14]
[381078499,1756007444619,-151.0,0.00033122,14]
[381078500,1756007444629,-151.0,0.00033122,14]
[381078501,1756007444638,-151.0,0.00033122,14]
[381078502,1756007444649,-151.0,0.00033122,14]
[381078503,1756007444658,-152.155785,0.00033122,14]
[381078504,1756007444667,-180.895004,0.00033122,14]
[381078505,1756007444676,-180.895004,0.00033122,14]
[381078506,1756007444685,-180.895004,0.00033122,14]
[381078507,1756007444695,-180.895004,0.00033122,14]
[381078508,1756007444704,-977.944,0.00033132,2]
[381078509,1756007444713,-2165.389,0.00033132,2]
[381078510,1756007444722,-642.583,0.00033132,2]
[381078511,1756007444731,-150.126,0.00033132,2]
[381078512,1756007444741,-151.860036,0.00033132,14]
[381078513,1756007444750,-151.860036,0.00033132,14]
[381078514,1756007444759,-151.860036,0.00033132,14]
[381078515,1756007444768,-151.860036,0.00033132,14]
[381078516,1756007444777,-217.716961,0.00033132,14]
[381078517,1756007444786,-217.716961,0.00033132,14]
[381078518,1756007444796,-217.716961,0.00033132,14]
[381078519,1756007444805,-217.716961,0.00033132,14]
[381078520,1756007444814,-151.0,0.00033132,14]
[381078521,1756007444823,-151.0,0.00033132,14]
[381078522,1756007444833,-151.0,0.00033132,14]
[381078523,1756007444842,-151.0,0.00033132,14]
[381078524,1756007444851,-182.664492,0.00033132,14]
[381078525,1756007444860,-154.323289,0.00033132,14]
[381078526,1756007444870,-151.0,0.00033132,14]
[381078527,1756007444880,-151.0,0.00033132,14]
[381078528,1756007444890,-151.0,0.00033132,14]
[381078529,1756007444899,-151.0,0.00033132,14]
[381078530,1756007444909,-151.0,0.00033132,14]
[381078531,1756007444919,-151.0,0.00033132,14]
[381078532,1756007444929,-151.0,0.00033132,14]
[381078533,1756007444938,-151.0,0.00033132,14]
[381078534,1756007444948,-151.0,0.00033132,14]
[381078535,1756007444958,-151.0,0.00033132,14]
[381078536,1756007444968,-151.0,0.00033132,14]
[381078537,1756007444978,-151.0,0.00033132,14]
[381078538,1756007444988,-730.43683106,0.00033321,5]
[381078539,1756007444997,-1000.0,0.00033321,5]
[381078540,1756007445007,-500.62894446,0.00033321,5]
[381078541,1756007445017,-1000.0,0.00033321,5]
[381078542,1756007445027,-1000.0,0.00033321,5]
[381078543,1756007445037,-1000.0,0.00033321,5]
[381078544,1756007445046,-427.24665281,0.00033321,5]
[381078545,1756007445056,-501.38862574,0.00033321,5]
[381078546,1756007445065,-916.96542323,0.00033321,5]
[381078547,1756007445076,-156.0,0.000335,120]
[381078548,1756007445085,-161.19559496,0.00033627,30]
[381078549,1756007445094,-155.51094,0.00033712,14]
[381078550,1756007445104,-155.51094,0.00033712,14]
[381078551,1756007445114,-254.512641,0.00033712,14]
[381078552,1756007445124,-155.51094,0.00033712,14]
[381078553,1756007445134,-254.512641,0.00033712,14]
[381078554,1756007445144,-155.51094,0.00033712,14]
[381078555,1756007445153,-254.512641,0.00033712,14]
[381078556,1756007445163,-254.512641,0.00033712,14]
[381078557,1756007445173,-429.36628963,0.00033712,21]
[381078558,1756007445182,-994.50726832,0.00033774,2]
[381078559,1756007445192,-1502.95419115,0.00033868,5]
[381078560,1756007445201,-1004.53900081,0.00033868,5]
[381078561,1756007445211,-1004.34264441,0.00033868,5]
[381078562,1756007445221,-1500.0,0.00033868,5]
[381078563,1756007445230,-200.0,0.00034,120]
[381078564,1756007445240,-1194.34,0.00034246,120]
[381078565,1756007445249,-151.0,0.00034249,14]
[381078566,1756007445258,-151.0,0.00034249,14]
[381078567,1756007445268,-151.0,0.00034249,14]
[381078568,1756007445277,-151.0,0.00034249,14]
[381078569,1756007445286,-151.0,0.00034249,14]
[381078570,1756007445296,-151.0,0.00034249,14]
[381078571,1756007445306,-2000.0,0.00034416,5]
[381078572,1756007445316,-1054.70615657,0.00034455,5]
[381078573,1756007445327,-194.58551035,0.0003492,30]
[381078574,1756007445336,-520.57562607,0.00034964,5]
[381078575,1756007445346,-262.30730692,0.00035,120]
[381078576,1756007445355,-221.27,0.00035,7]
[381078577,1756007445364,-7693.13858262,0.00035092,2]
[381078578,1756007445374,-1971.56249131,0.00035092,2]
[381078579,1756007445385,-151.0,0.00035102,14]
[381078580,1756007445395,-151.0,0.00035102,14]
[381078581,1756007445404,-151.0,0.00035102,14]
[381078582,1756007445413,-151.0,0.00035102,14]
[381078583,1756007445423,-193.28,0.00035102,14]
[381078584,1756007445432,-193.28,0.00035102,14]
[381078585,1756007445441,-193.28,0.00035102,14]
[381078586,1756007445450,-193.28,0.00035102,14]
[381078587,1756007445459,-188.891367,0.00035102,14]
[381078588,1756007445469,-188.891367,0.00035102,14]
[381078589,1756007445479,-188.891367,0.00035102,14]
[381078590,1756007445488,-188.891367,0.00035102,14]
[381078591,1756007445497,-151.0,0.00035102,14]
[381078592,1756007445506,-151.0,0.00035102,14]
[381078593,1756007445515,-180.278156,0.00035102,14]
[381078594,1756007445525,-151.0,0.00035102,14]
[381078595,1756007445534,-151.0,0.00035102,14]
[381078596,1756007445544,-169.55017,0.00035102,14]
[381078597,1756007445552,-151.0,0.00035102,14]
[381078598,1756007445562,-151.0,0.00035102,14]
[381078599,1756007445571,-151.0,0.00035102,14]
[381078600,1756007445580,-151.0,0.00035102,14]
[381078601,1756007445589,-151.0,0.00035102,14]
[381078602,1756007445598,-151.0,0.00035102,14]
[381078603,1756007445608,-174.63345,0.00035102,14]
[381078604,1756007445617,-151.0,0.00035102,14]
[381078605,1756007445627,-151.0,0.00035102,14]
[381078606,1756007445636,-264.517546,0.00035102,14]
[381078607,1756007445645,-151.0,0.00035102,14]
[381078608,1756007445655,-151.0,0.00035102,14]
[381078609,1756007445664,-278.65371,0.00035102,14]
[381078610,1756007445673,-278.65371,0.00035102,14]
[381078611,1756007445682,-278.65371,0.00035102,14]
[381078612,1756007445691,-278.65371,0.00035102,14]
[381078613,1756007445700,-151.0,0.00035102,14]
[381078614,1756007445709,-151.0,0.00035102,14]
[381078615,1756007445718,-151.0,0.00035102,14]
[381078616,1756007445728,-151.0,0.00035102,14]
[381078617,1756007445737,-151.0,0.00035102,14]
[381078618,1756007445747,-168.99581,0.00035102,14]
[381078619,1756007445756,-223.020353,0.00035102,14]
[381078620,1756007445765,-182.01622,0.00035102,14]
[381078621,1756007445774,-182.01622,0.00035102,14]
[381078622,1756007445784,-182.01622,0.00035102,14]
[381078623,1756007445793,-182.01622,0.00035102,14]
[381078624,1756007445803,-331.84,0.000353,14]
[381078625,1756007445812,-1152.0,0.00035385,2]
[381078626,1756007445821,-150.0,0.00035414,5]
[381078627,1756007445830,-429.36628963,0.00035439,24]
[381078628,1756007445840,-151.0,0.000355,19]
[381078629,1756007445849,-1194.34,0.00035616,120]
[381078631,1756007445858,-500.0,0.00035673,5]
[381078632,1756007445869,-150.0,0.00035673,5]
[381078633,1756007445879,-16006.63,0.000357,14]
[381078634,1756007445889,-151.0,0.000357,14]
[381078635,1756007445898,-151.0,0.000357,14]
[381078636,1756007445908,-151.0,0.000357,14]
[381078637,1756007445918,-151.0,0.000357,14]
[381078638,1756007445927,-151.0,0.000357,14]
[381078640,1756007445936,-151.0,0.000357,14]
[381078641,1756007445946,-151.000001,0.000357,14]
[381078642,1756007445955,-151.0,0.000357,14]
[381078643,1756007445964,-151.0,0.000357,14]
[381078644,1756007445974,-151.0,0.000357,14]
[381078645,1756007445983,-151.0,0.000357,14]
[381078647,1756007445992,-151.0,0.000357,14]
[381078649,1756007446002,-151.0,0.000357,14]
[381078650,1756007446011,-151.0,0.000357,14]
[381078652,1756007446021,-151.0,0.000357,14]
[381078654,1756007446030,-151.0,0.000357,14]
[381078655,1756007446040,-151.0,0.000357,14]
[381078657,1756007446049,-151.0,0.000357,14]
[381078658,1756007446058,-151.0,0.000357,14]
[381078660,1756007446068,-151.0,0.000357,14]
[381078662,1756007446077,-300.6713272,0.00035962,5]
[381078664,1756007446086,-155.78192788,0.00036,30]
[381078665,1756007446096,-156.0,0.00036,120]
[381078667,1756007446105,-161.19559496,0.00036213,30]
[381078668,1756007446114,-775.90071939,0.00036221,5]
[381078670,1756007446122,-150.78292681,0.00036221,5]
[381078672,1756007446131,-179.71246006,0.00036332,16]
[381078673,1756007446141,-151.0,0.000367,11]
[381078675,1756007446150,-1194.34,0.00036986,120]
[381078676,1756007446159,-429.36628963,0.00037166,28]
[381078677,1756007446169,-151.0,0.000378,18]
[381078678,1756007446179,-2006.19374963,0.00038,30]
[381078679,1756007446188,-446.52029902,0.00038,120]
[381078681,1756007446197,-500.0,0.00038053,5]
[381078682,1756007446206,-500.0,0.00038243,5]
[381078683,1756007446216,-500.0,0.00038243,5]
[381078684,1756007446225,-617.0,0.00038303,5]
[381078686,1756007446234,-1194.34,0.00038356,120]
[381078687,1756007446244,-156.0,0.000386,120]
[381078689,1756007446253,-1000.0,0.00038601,5]
[381078690,1756007446262,-501.84033229,0.00038791,5]
[381078691,1756007446272,-1000.57638129,0.00038791,5]
[381078692,1756007446282,-194.58,0.000388,120]
[381078693,1756007446291,-161.19,0.000388,120]
[381078694,1756007446301,-429.36628963,0.00038892,32]
[381078696,1756007446311,-308908.10037625,0.000389,60]
[381078697,1756007446322,-151.0,0.000389,14]
[381078698,1756007446332,-151.0,0.000389,14]
[381078699,1756007446342,-151.0,0.000389,14]
[381078700,1756007446352,-216.127698,0.000389,14]
[381078701,1756007446363,-151.0,0.000389,14]
[381078702,1756007446373,-151.0,0.000389,14]
[381078703,1756007446383,-151.0,0.000389,14]
[381078704,1756007446392,-151.0,0.000389,14]
[381078705,1756007446402,-151.0,0.000389,14]
[381078706,1756007446414,-151.0,0.000389,14]
[381078707,1756007446424,-151.0,0.000389,14]
[381078708,1756007446434,-151.0,0.000389,14]
[381078709,1756007446443,-151.0,0.000389,14]
[381078710,1756007446453,-152.387388,0.000389,14]
[381078711,1756007446462,-151.0,0.000389,14]
[381078712,1756007446472,-151.0,0.000389,14]
[381078713,1756007446482,-151.0,0.000389,14]
[381078714,1756007446492,-151.0,0.000389,14]
[381078715,1756007446502,-151.0,0.000389,14]
[381078716,1756007446512,-151.0,0.000389,14]
[381078717,1756007446524,-151.0,0.000389,14]
[381078718,1756007446533,-151.0,0.000389,14]
[381078719,1756007446544,-151.0,0.000389,14]
[381078720,1756007446554,-151.0,0.000389,14]
[381078721,1756007446563,-197.860276,0.000389,14]
[381078722,1756007446573,-151.0,0.000389,14]
[381078723,1756007446582,-151.0,0.000389,14]
[381078724,1756007446592,-151.0,0.000389,14]
[381078725,1756007446602,-151.0,0.000389,14]
[381078726,1756007446611,-151.0,0.000389,14]
[381078727,1756007446620,-151.0,0.000389,14]
[381078728,1756007446629,-181.781199,0.000389,14]
[381078729,1756007446639,-151.0,0.000389,14]
[381078730,1756007446649,-151.0,0.000389,14]
[381078731,1756007446658,-151.0,0.000389,14]
[381078732,1756007446668,-289.910843,0.000389,14]
[381078733,1756007446678,-193.28,0.000389,14]
[381078734,1756007446687,-193.28,0.000389,14]
[381078735,1756007446697,-193.28,0.000389,14]
[381078736,1756007446706,-193.28,0.000389,14]
[381078737,1756007446719,-188.891367,0.000389,14]
[381078738,1756007446729,-188.891367,0.000389,14]
[381078739,1756007446738,-188.891367,0.000389,14]
[381078740,1756007446748,-188.891367,0.000389,14]
[381078741,1756007446757,-151.0,0.000389,14]
[381078742,1756007446766,-151.0,0.000389,14]
[381078743,1756007446776,-151.860036,0.000389,14]
[381078744,1756007446785,-151.860036,0.000389,14]
[381078745,1756007446795,-151.860036,0.000389,14]
[381078746,1756007446805,-151.860036,0.000389,14]
[381078747,1756007446814,-217.716961,0.000389,14]
[381078748,1756007446824,-217.716961,0.000389,14]
[381078749,1756007446834,-217.716961,0.000389,14]
[381078750,1756007446844,-217.716961,0.000389,14]
[381078751,1756007446854,-151.0,0.000389,14]
[381078752,1756007446863,-151.0,0.000389,14]
[381078753,1756007446872,-151.0,0.000389,14]